[Event "Titled Tuesday Blitz April 11 Early 2023"]
[White "Fuzesabonyilaci"]
[Black "Turzo, Attila"]
[BlackFideId "704954"]
[WhiteElo "2323"]
[BlackElo "2491"]
[Result "1/2-1/2"]
[Round "05"]
[TimeControl "180+2"]
[Date "2023.04.11"]
[WhiteClock "0:00:14"]
[BlackClock "0:00:04"]

1. Nf3 {[%clk 0:03:00]}  c5 {[%clk 0:02:59]} 2. g3 {[%clk 0:02:55]}  g6 {[%clk 0:02:59]} 3. Bg2 {[%clk 0:02:53]}  Bg7 {[%clk 0:02:59]} 4. O-O {[%clk 0:02:46]}  Nc6 {[%clk 0:03:00]} 5. c4 {[%clk 0:02:40]}  e5 {[%clk 0:03:00]} 6. Nc3 {[%clk 0:02:40]}  Nge7 {[%clk 0:03:01]} 7. a3 {[%clk 0:02:39]}  O-O {[%clk 0:02:54]} 8. b4 {[%clk 0:02:34]}  d6 {[%clk 0:02:53]} 9. Rb1 {[%clk 0:02:27]}  Rb8 {[%clk 0:02:51]} 10. d3 {[%clk 0:02:18]}  b6 {[%clk 0:02:49]} 11. bxc5 {[%clk 0:02:10]}  dxc5 {[%clk 0:02:48]} 12. Bg5 {[%clk 0:02:04]}  f6 {[%clk 0:02:44]} 13. Bd2 {[%clk 0:02:04]}  Be6 {[%clk 0:02:44]} 14. Ne1 {[%clk 0:02:04]}  Qd7 {[%clk 0:02:43]} 15. Nc2 {[%clk 0:02:04]}  f5 {[%clk 0:02:23]} 16. Qc1 {[%clk 0:02:02]}  Nd4 {[%clk 0:02:17]} 17. Nxd4 {[%clk 0:01:56]}  cxd4 {[%clk 0:02:12]} 18. Nd1 {[%clk 0:01:41]}  Rfc8 {[%clk 0:01:59]} 19. Qb2 {[%clk 0:01:32]}  a6 {[%clk 0:01:56]} 20. Bb4 {[%clk 0:01:28]}  b5 {[%clk 0:01:56]} 21. Bxe7 {[%clk 0:01:28]}  Qxe7 {[%clk 0:01:56]} 22. cxb5 {[%clk 0:01:27]}  Rxb5 {[%clk 0:01:50]} 23. Qa1 {[%clk 0:01:27]}  Rxb1 {[%clk 0:01:45]} 24. Qxb1 {[%clk 0:01:28]}  Qxa3 {[%clk 0:01:45]} 25. Qb6 {[%clk 0:01:23]}  Bf7 {[%clk 0:01:26]} 26. Nb2 {[%clk 0:01:18]}  Qb3 {[%clk 0:01:21]} 27. Qxa6 {[%clk 0:01:14]}  Rc2 {[%clk 0:01:19]} 28. Nc4 {[%clk 0:01:07]}  Rxe2 {[%clk 0:01:10]} 29. Qc8+ {[%clk 0:01:02]}  Bf8 {[%clk 0:01:10]} 30. Ra1 {[%clk 0:00:51]}  Ra2 {[%clk 0:01:03]} 31. Rxa2 {[%clk 0:00:47]}  Qxa2 {[%clk 0:01:04]} 32. Nxe5 {[%clk 0:00:46]}  Qe6 {[%clk 0:00:57]} 33. Nd7 {[%clk 0:00:28]}  Qe1+ {[%clk 0:00:36]} 34. Bf1 {[%clk 0:00:28]}  Qe7 {[%clk 0:00:34]} 35. f4 {[%clk 0:00:15]}  Kg7 {[%clk 0:00:28]} 36. Ne5 {[%clk 0:00:14]}  Be6 {[%clk 0:00:26]} 37. Qc6 {[%clk 0:00:12]}  Qd6 {[%clk 0:00:23]} 38. Qb7+ {[%clk 0:00:11]}  Qe7 {[%clk 0:00:23]} 39. Qxe7+ {[%clk 0:00:10]}  Bxe7 {[%clk 0:00:23]} 40. Nc6 {[%clk 0:00:11]}  Bc5 {[%clk 0:00:21]} 41. Bg2 {[%clk 0:00:11]}  Kf6 {[%clk 0:00:21]} 42. Kf2 {[%clk 0:00:12]}  h6 {[%clk 0:00:21]} 43. h4 {[%clk 0:00:12]}  g5 {[%clk 0:00:19]} 44. hxg5+ {[%clk 0:00:12]}  hxg5 {[%clk 0:00:20]} 45. Ne5 {[%clk 0:00:13]}  gxf4 {[%clk 0:00:19]} 46. gxf4 {[%clk 0:00:12]}  Bb3 {[%clk 0:00:19]} 47. Bf3 {[%clk 0:00:12]}  Ke6 {[%clk 0:00:18]} 48. Be2 {[%clk 0:00:12]}  Bb4 {[%clk 0:00:18]} 49. Nf3 {[%clk 0:00:11]}  Bc3 {[%clk 0:00:17]} 50. Kg3 {[%clk 0:00:11]}  Bc2 {[%clk 0:00:17]} 51. Kh4 {[%clk 0:00:11]}  Kf6 {[%clk 0:00:16]} 52. Ne5 {[%clk 0:00:11]}  Bd2 {[%clk 0:00:15]} 53. Kg3 {[%clk 0:00:11]}  Be3 {[%clk 0:00:15]} 54. Nc4 {[%clk 0:00:12]}  Bg1 {[%clk 0:00:14]} 55. Ne5 {[%clk 0:00:12]}  Be3 {[%clk 0:00:13]} 56. Nc4 {[%clk 0:00:12]}  Bc1 {[%clk 0:00:13]} 57. Ne5 {[%clk 0:00:12]}  Bb3 {[%clk 0:00:13]} 58. Nf3 {[%clk 0:00:13]}  Be3 {[%clk 0:00:12]} 59. Ne5 {[%clk 0:00:13]}  Bd5 {[%clk 0:00:12]} 60. Bf3 {[%clk 0:00:13]}  Bxf3 {[%clk 0:00:11]} 61. Kxf3 {[%clk 0:00:14]}  Ke6 {[%clk 0:00:10]} 62. Nc4 {[%clk 0:00:15]}  Bc1 {[%clk 0:00:09]} 63. Ne5 {[%clk 0:00:15]}  Bb2 {[%clk 0:00:08]} 64. Nc4 {[%clk 0:00:15]}  Bc3 {[%clk 0:00:08]} 65. Nb6 {[%clk 0:00:14]}  Bb2 {[%clk 0:00:07]} 66. Nc4 {[%clk 0:00:15]}  Bc3 {[%clk 0:00:07]} 67. Kg3 {[%clk 0:00:14]}  Kf6 {[%clk 0:00:06]} 68. Kf3 {[%clk 0:00:14]}  Ba1 {[%clk 0:00:04]} 1/2-1/2


[Site "https://www.chess.com"]

[Event "Titled Tuesday Blitz April 11 Early 2023"]
[White "Shubenkova, Veronika"]
[Black "Ward, Ieuan C"]
[WhiteFideId "44124040"]
[BlackFideId "406627"]
[WhiteElo "2027"]
[BlackElo "2321"]
[Result "1-0"]
[Round "05"]
[TimeControl "180+2"]
[Date "2023.04.11"]
[WhiteClock "0:02:50"]
[BlackClock "0:02:04"]

1. e4 {[%clk 0:03:00]}  e5 {[%clk 0:02:57]} 2. Nf3 {[%clk 0:03:00]}  Nc6 {[%clk 0:02:57]} 3. Bb5 {[%clk 0:03:00]}  a6 {[%clk 0:02:56]} 4. Bxc6 {[%clk 0:02:59]}  dxc6 {[%clk 0:02:56]} 5. O-O {[%clk 0:03:00]}  Bd6 {[%clk 0:02:55]} 6. d4 {[%clk 0:03:00]}  f6 {[%clk 0:02:52]} 7. dxe5 {[%clk 0:03:00]}  fxe5 {[%clk 0:02:49]} 8. Nxe5 {[%clk 0:02:58]}  Nf6 {[%clk 0:02:42]} 9. Nf3 {[%clk 0:02:54]}  Bg4 {[%clk 0:02:29]} 10. e5 {[%clk 0:02:53]}  Bxf3 {[%clk 0:02:24]} 11. Qxf3 {[%clk 0:02:53]}  Bxe5 {[%clk 0:02:23]} 12. Re1 {[%clk 0:02:53]}  Qe7 {[%clk 0:02:06]} 13. Bf4 {[%clk 0:02:53]}  Nd7 {[%clk 0:02:05]} 14. Bxe5 {[%clk 0:02:50]}  Nxe5 {[%clk 0:02:04]} 15. Qh5+ {[%clk 0:02:50]} 1-0


[Site "https://www.chess.com"]

[Event "Titled Tuesday Blitz April 11 Early 2023"]
[White "Havas, Ladislav"]
[Black "Mouhamad, Joachim"]
[WhiteFideId "14501090"]
[BlackFideId "656410"]
[WhiteElo "2202"]
[BlackElo "2125"]
[Result "0-1"]
[Round "05"]
[TimeControl "180+2"]
[Date "2023.04.11"]
[WhiteClock "0:00:20"]
[BlackClock "0:00:06"]

1. d4 {[%clk 0:03:00]}  d5 {[%clk 0:02:59]} 2. Bf4 {[%clk 0:03:00]}  Nf6 {[%clk 0:02:57]} 3. e3 {[%clk 0:02:59]}  e6 {[%clk 0:02:55]} 4. Nf3 {[%clk 0:02:59]}  c5 {[%clk 0:02:55]} 5. c3 {[%clk 0:02:58]}  Bd6 {[%clk 0:02:53]} 6. Bg3 {[%clk 0:02:58]}  O-O {[%clk 0:02:52]} 7. Nbd2 {[%clk 0:02:57]}  Qc7 {[%clk 0:02:51]} 8. Ne5 {[%clk 0:02:56]}  Nc6 {[%clk 0:02:44]} 9. f4 {[%clk 0:02:55]}  Ne7 {[%clk 0:02:42]} 10. Bd3 {[%clk 0:02:54]}  Nf5 {[%clk 0:02:41]} 11. Bf2 {[%clk 0:02:53]}  Be7 {[%clk 0:02:41]} 12. Qf3 {[%clk 0:02:50]}  Nd6 {[%clk 0:02:36]} 13. O-O {[%clk 0:02:48]}  b6 {[%clk 0:02:33]} 14. Qh3 {[%clk 0:02:36]}  Nfe4 {[%clk 0:02:15]} 15. Be1 {[%clk 0:02:31]}  f6 {[%clk 0:02:09]} 16. Nef3 {[%clk 0:02:30]}  e5 {[%clk 0:02:02]} 17. Qh5 {[%clk 0:02:24]}  g6 {[%clk 0:01:55]} 18. Qh6 {[%clk 0:02:23]}  Nf5 {[%clk 0:01:54]} 19. Qh3 {[%clk 0:02:16]}  Nxe3 {[%clk 0:01:52]} 20. Qh6 {[%clk 0:02:16]}  Nf5 {[%clk 0:01:46]} 21. Qh3 {[%clk 0:02:14]}  Nxd4 {[%clk 0:01:46]} 22. Qh6 {[%clk 0:02:10]}  Nf5 {[%clk 0:01:46]} 23. Qh3 {[%clk 0:02:09]}  Ne3 {[%clk 0:01:30]} 24. Qh6 {[%clk 0:02:03]}  Nxf1 {[%clk 0:01:22]} 25. Nxe4 {[%clk 0:02:02]}  dxe4 {[%clk 0:01:15]} 26. Bxe4 {[%clk 0:02:01]}  Bb7 {[%clk 0:00:53]} 27. Bxg6 {[%clk 0:02:01]}  Bd6 {[%clk 0:00:52]} 28. Bf5 {[%clk 0:01:51]}  Ne3 {[%clk 0:00:47]} 29. Be6+ {[%clk 0:01:49]}  Kh8 {[%clk 0:00:48]} 30. Bh4 {[%clk 0:01:44]}  Qg7 {[%clk 0:00:46]} 31. Qxg7+ {[%clk 0:01:33]}  Kxg7 {[%clk 0:00:46]} 32. Re1 {[%clk 0:01:27]}  exf4 {[%clk 0:00:46]} 33. Bf2 {[%clk 0:01:16]}  Bxf3 {[%clk 0:00:43]} 34. gxf3 {[%clk 0:01:16]}  Rae8 {[%clk 0:00:42]} 35. Bd7 {[%clk 0:01:14]}  Re5 {[%clk 0:00:41]} 36. Kh1 {[%clk 0:01:09]}  Rd8 {[%clk 0:00:37]} 37. Bc6 {[%clk 0:01:04]}  Bc7 {[%clk 0:00:35]} 38. h4 {[%clk 0:00:59]}  Rd2 {[%clk 0:00:30]} 39. Rg1+ {[%clk 0:00:58]}  Kf7 {[%clk 0:00:29]} 40. Be1 {[%clk 0:00:56]}  Re2 {[%clk 0:00:28]} 41. Bb5 {[%clk 0:00:52]}  Rxb2 {[%clk 0:00:25]} 42. a4 {[%clk 0:00:50]}  Rf5 {[%clk 0:00:20]} 43. Bd3 {[%clk 0:00:47]}  Rh5 {[%clk 0:00:19]} 44. Be4 {[%clk 0:00:33]}  Re2 {[%clk 0:00:15]} 45. Bd3 {[%clk 0:00:29]}  Ra2 {[%clk 0:00:14]} 46. Be4 {[%clk 0:00:28]}  Rxa4 {[%clk 0:00:14]} 47. Bc6 {[%clk 0:00:28]}  Ra2 {[%clk 0:00:11]} 48. Be4 {[%clk 0:00:25]}  Re2 {[%clk 0:00:10]} 49. Bd3 {[%clk 0:00:24]}  Ra2 {[%clk 0:00:08]} 50. Be4 {[%clk 0:00:24]}  a5 {[%clk 0:00:08]} 51. Bc6 {[%clk 0:00:24]}  a4 {[%clk 0:00:08]} 52. Be4 {[%clk 0:00:20]}  a3 {[%clk 0:00:08]} 53. Bb1 {[%clk 0:00:20]}  Rb2 {[%clk 0:00:08]} 54. Be4 {[%clk 0:00:19]}  a2 {[%clk 0:00:08]} 55. c4 {[%clk 0:00:19]}  a1=Q {[%clk 0:00:07]} 56. Bc3 {[%clk 0:00:20]}  Rxh4# {[%clk 0:00:06]} 0-1


[Site "https://www.chess.com"]

[Event "Titled Tuesday Blitz April 11 Early 2023"]
[White "Rian, Kapriaga"]
[Black "Chandreyee, Hajra"]
[WhiteFideId "7103263"]
[BlackFideId "5056535"]
[WhiteElo "2314"]
[BlackElo "1725"]
[Result "0-1"]
[Round "05"]
[TimeControl "180+2"]
[Date "2023.04.11"]
[WhiteClock "0:00:01"]
[BlackClock "0:00:20"]

1. d4 {[%clk 0:02:56]}  e6 {[%clk 0:02:59]} 2. Nf3 {[%clk 0:02:57]}  f5 {[%clk 0:02:58]} 3. Nc3 {[%clk 0:02:56]}  Nf6 {[%clk 0:02:58]} 4. Bg5 {[%clk 0:02:56]}  Be7 {[%clk 0:02:58]} 5. Bxf6 {[%clk 0:02:56]}  Bxf6 {[%clk 0:02:58]} 6. e4 {[%clk 0:02:56]}  fxe4 {[%clk 0:02:58]} 7. Nxe4 {[%clk 0:02:56]}  d5 {[%clk 0:02:58]} 8. Nxf6+ {[%clk 0:02:56]}  Qxf6 {[%clk 0:02:59]} 9. Bd3 {[%clk 0:02:56]}  O-O {[%clk 0:02:58]} 10. Qe2 {[%clk 0:02:55]}  Nc6 {[%clk 0:02:55]} 11. c3 {[%clk 0:02:55]}  Bd7 {[%clk 0:02:48]} 12. O-O {[%clk 0:02:54]}  Be8 {[%clk 0:02:42]} 13. Ne5 {[%clk 0:02:40]}  Nxe5 {[%clk 0:02:39]} 14. dxe5 {[%clk 0:02:40]}  Qh6 {[%clk 0:02:39]} 15. g3 {[%clk 0:02:33]}  Bh5 {[%clk 0:02:36]} 16. f3 {[%clk 0:02:20]}  c5 {[%clk 0:02:35]} 17. Rae1 {[%clk 0:02:18]}  c4 {[%clk 0:02:29]} 18. Bb1 {[%clk 0:02:17]}  b5 {[%clk 0:02:28]} 19. a3 {[%clk 0:02:15]}  Rf7 {[%clk 0:02:26]} 20. Qe3 {[%clk 0:02:15]}  Qxe3+ {[%clk 0:02:20]} 21. Rxe3 {[%clk 0:02:15]}  a5 {[%clk 0:02:20]} 22. f4 {[%clk 0:02:11]}  Rb8 {[%clk 0:02:11]} 23. f5 {[%clk 0:01:56]}  Bg4 {[%clk 0:01:59]} 24. fxe6 {[%clk 0:01:46]}  Bxe6 {[%clk 0:01:58]} 25. Rxf7 {[%clk 0:01:39]}  Kxf7 {[%clk 0:01:58]} 26. h4 {[%clk 0:01:30]}  b4 {[%clk 0:01:53]} 27. axb4 {[%clk 0:01:30]}  axb4 {[%clk 0:01:53]} 28. Bxh7 {[%clk 0:01:23]}  b3 {[%clk 0:01:37]} 29. Rf3+ {[%clk 0:01:18]}  Ke7 {[%clk 0:01:36]} 30. Bg6 {[%clk 0:01:12]}  Ra8 {[%clk 0:01:35]} 31. Rf2 {[%clk 0:01:06]}  Ra1+ {[%clk 0:01:30]} 32. Kg2 {[%clk 0:01:06]}  Re1 {[%clk 0:01:30]} 33. g4 {[%clk 0:00:40]}  Bxg4 {[%clk 0:01:20]} 34. Rf7+ {[%clk 0:00:33]}  Ke6 {[%clk 0:01:19]} 35. Rxg7 {[%clk 0:00:33]}  Bf5 {[%clk 0:00:54]} 36. Bxf5+ {[%clk 0:00:18]}  Kxf5 {[%clk 0:00:54]} 37. h5 {[%clk 0:00:17]}  Rxe5 {[%clk 0:00:43]} 38. h6 {[%clk 0:00:15]}  Kf6 {[%clk 0:00:43]} 39. Rg4 {[%clk 0:00:08]}  Rh5 {[%clk 0:00:36]} 40. Kf3 {[%clk 0:00:02]}  Rxh6 {[%clk 0:00:36]} 41. Ke3 {[%clk 0:00:02]}  Rh2 {[%clk 0:00:34]} 42. Kd4 {[%clk 0:00:01]}  Rxb2 {[%clk 0:00:26]} 43. Kxd5 {[%clk 0:00:01]}  Rc2 {[%clk 0:00:20]} 44. Kxc4 {[%clk 0:00:01]}  b2 {[%clk 0:00:20]} 0-1


[Site "https://www.chess.com"]

[Event "Titled Tuesday Blitz April 11 Early 2023"]
[White "Dishman, Stephen"]
[Black "mohsengabr2002"]
[WhiteFideId "403024"]
[WhiteElo "2204"]
[BlackElo "2428"]
[Result "0-1"]
[Round "05"]
[TimeControl "180+2"]
[Date "2023.04.11"]
[WhiteClock "0:00:11"]
[BlackClock "0:01:51"]

1. d4 {[%clk 0:03:00]}  d5 {[%clk 0:02:58]} 2. c4 {[%clk 0:03:00]}  c6 {[%clk 0:02:58]} 3. Nf3 {[%clk 0:03:00]}  e6 {[%clk 0:02:59]} 4. Qc2 {[%clk 0:02:57]}  f5 {[%clk 0:02:55]} 5. Bf4 {[%clk 0:02:55]}  Nf6 {[%clk 0:02:55]} 6. e3 {[%clk 0:02:55]}  Bd6 {[%clk 0:02:54]} 7. Nc3 {[%clk 0:02:55]}  Bxf4 {[%clk 0:02:54]} 8. exf4 {[%clk 0:02:54]}  O-O {[%clk 0:02:54]} 9. Bd3 {[%clk 0:02:52]}  Qd6 {[%clk 0:02:52]} 10. g3 {[%clk 0:02:51]}  Ne4 {[%clk 0:02:52]} 11. O-O {[%clk 0:02:49]}  Bd7 {[%clk 0:02:51]} 12. c5 {[%clk 0:02:47]}  Qe7 {[%clk 0:02:50]} 13. b4 {[%clk 0:02:45]}  Be8 {[%clk 0:02:49]} 14. Ne5 {[%clk 0:02:39]}  Nd7 {[%clk 0:02:48]} 15. Nxd7 {[%clk 0:02:35]}  Qxd7 {[%clk 0:02:47]} 16. Ne2 {[%clk 0:02:30]}  Bh5 {[%clk 0:02:46]} 17. f3 {[%clk 0:02:29]}  Nf6 {[%clk 0:02:46]} 18. Nc3 {[%clk 0:02:28]}  h6 {[%clk 0:02:44]} 19. Rae1 {[%clk 0:02:25]}  g5 {[%clk 0:02:42]} 20. fxg5 {[%clk 0:02:18]}  hxg5 {[%clk 0:02:42]} 21. Qd2 {[%clk 0:02:05]}  Nh7 {[%clk 0:02:37]} 22. h3 {[%clk 0:01:35]}  Qg7 {[%clk 0:02:33]} 23. Qe3 {[%clk 0:01:29]}  Bf7 {[%clk 0:02:31]} 24. g4 {[%clk 0:01:25]}  Rae8 {[%clk 0:02:27]} 25. Qe5 {[%clk 0:01:15]}  Nf6 {[%clk 0:02:23]} 26. gxf5 {[%clk 0:01:13]}  exf5 {[%clk 0:02:22]} 27. Qxf5 {[%clk 0:01:13]}  Nh5 {[%clk 0:02:16]} 28. Re5 {[%clk 0:01:01]}  Rxe5 {[%clk 0:02:07]} 29. Qxe5 {[%clk 0:01:00]}  Qh6 {[%clk 0:01:59]} 30. Ne2 {[%clk 0:00:47]}  Re8 {[%clk 0:01:58]} 31. Qf5 {[%clk 0:00:35]}  Re3 {[%clk 0:01:54]} 32. Kg2 {[%clk 0:00:30]}  Be6 {[%clk 0:01:53]} 33. Qg6+ {[%clk 0:00:10]}  Qxg6 {[%clk 0:01:53]} 34. Bxg6 {[%clk 0:00:11]}  Rxe2+ {[%clk 0:01:52]} 35. Rf2 {[%clk 0:00:11]}  Nf4+ {[%clk 0:01:52]} 36. Kg3 {[%clk 0:00:11]}  Rxf2 {[%clk 0:01:51]} 37. Kxf2 {[%clk 0:00:11]}  Nxg6 {[%clk 0:01:51]} 0-1


[Site "https://www.chess.com"]

[Event "Titled Tuesday Blitz April 11 Early 2023"]
[White "crosky"]
[Black "Estrada Nieto, Julian"]
[BlackFideId "5101018"]
[WhiteElo "2307"]
[BlackElo "2161"]
[Result "0-1"]
[Round "05"]
[TimeControl "180+2"]
[Date "2023.04.11"]
[WhiteClock "0:00:27"]
[BlackClock "0:01:43"]

1. c4 {[%clk 0:03:00]}  e5 {[%clk 0:02:59]} 2. g3 {[%clk 0:03:00]}  Nf6 {[%clk 0:02:59]} 3. Bg2 {[%clk 0:03:01]}  d5 {[%clk 0:02:58]} 4. cxd5 {[%clk 0:03:02]}  Nxd5 {[%clk 0:02:58]} 5. Nc3 {[%clk 0:03:03]}  Nb6 {[%clk 0:02:58]} 6. Nf3 {[%clk 0:03:02]}  Nc6 {[%clk 0:02:59]} 7. O-O {[%clk 0:03:03]}  Be7 {[%clk 0:02:59]} 8. Rb1 {[%clk 0:03:04]}  a5 {[%clk 0:02:56]} 9. d3 {[%clk 0:03:04]}  O-O {[%clk 0:02:56]} 10. Be3 {[%clk 0:03:04]}  Be6 {[%clk 0:02:55]} 11. Rc1 {[%clk 0:02:57]}  Nd5 {[%clk 0:02:55]} 12. Qd2 {[%clk 0:02:17]}  f5 {[%clk 0:02:51]} 13. Nxd5 {[%clk 0:02:05]}  Bxd5 {[%clk 0:02:51]} 14. a3 {[%clk 0:02:02]}  Bf6 {[%clk 0:02:44]} 15. Bc5 {[%clk 0:02:00]}  Re8 {[%clk 0:02:43]} 16. Rfd1 {[%clk 0:01:43]}  Bb3 {[%clk 0:02:41]} 17. Re1 {[%clk 0:01:34]}  a4 {[%clk 0:02:40]} 18. e4 {[%clk 0:01:18]}  f4 {[%clk 0:02:24]} 19. gxf4 {[%clk 0:01:10]}  exf4 {[%clk 0:02:24]} 20. d4 {[%clk 0:01:11]}  b6 {[%clk 0:02:22]} 21. Bxb6 {[%clk 0:01:07]}  cxb6 {[%clk 0:02:20]} 22. Rxc6 {[%clk 0:01:08]}  Rc8 {[%clk 0:02:05]} 23. Rxc8 {[%clk 0:01:00]}  Qxc8 {[%clk 0:02:05]} 24. Qxf4 {[%clk 0:01:01]}  Qc2 {[%clk 0:02:00]} 25. e5 {[%clk 0:01:00]}  Be7 {[%clk 0:02:00]} 26. Ng5 {[%clk 0:00:52]}  Rf8 {[%clk 0:01:57]} 27. Be4 {[%clk 0:00:27]}  Rxf4 {[%clk 0:01:48]} 28. Bxh7+ {[%clk 0:00:27]}  Qxh7 {[%clk 0:01:43]} 0-1


[Site "https://www.chess.com"]

[Event "Titled Tuesday Blitz April 11 Early 2023"]
[White "Sargissyan, Sargis"]
[Black "Prudnykova, Olga"]
[WhiteFideId "13303210"]
[BlackFideId "14121093"]
[WhiteElo "2109"]
[BlackElo "2113"]
[Result "0-1"]
[Round "05"]
[TimeControl "180+2"]
[Date "2023.04.11"]
[WhiteClock "0:00:06"]
[BlackClock "0:02:10"]

1. e4 {[%clk 0:03:00]}  c5 {[%clk 0:02:58]} 2. Nf3 {[%clk 0:03:00]}  Nf6 {[%clk 0:02:57]} 3. e5 {[%clk 0:02:59]}  Nd5 {[%clk 0:02:57]} 4. Nc3 {[%clk 0:03:00]}  e6 {[%clk 0:02:58]} 5. Nxd5 {[%clk 0:02:52]}  exd5 {[%clk 0:02:59]} 6. d4 {[%clk 0:02:51]}  Nc6 {[%clk 0:02:57]} 7. dxc5 {[%clk 0:02:12]}  Bxc5 {[%clk 0:02:55]} 8. Qxd5 {[%clk 0:02:10]}  Qb6 {[%clk 0:02:55]} 9. Bc4 {[%clk 0:02:11]}  Bxf2+ {[%clk 0:02:54]} 10. Ke2 {[%clk 0:02:08]}  O-O {[%clk 0:02:55]} 11. Rf1 {[%clk 0:02:05]}  Bc5 {[%clk 0:02:55]} 12. Ng5 {[%clk 0:01:21]}  Nxe5 {[%clk 0:02:53]} 13. Qxe5 {[%clk 0:01:12]}  d5 {[%clk 0:02:52]} 14. Bd3 {[%clk 0:00:53]}  Bg4+ {[%clk 0:02:48]} 15. Kd2 {[%clk 0:00:44]}  Rae8 {[%clk 0:02:44]} 16. Bxh7+ {[%clk 0:00:40]}  Kh8 {[%clk 0:02:43]} 17. Rxf7 {[%clk 0:00:14]}  Rxe5 {[%clk 0:02:36]} 18. Rxf8+ {[%clk 0:00:13]}  Bxf8 {[%clk 0:02:36]} 19. Nf7+ {[%clk 0:00:14]}  Kxh7 {[%clk 0:02:34]} 20. Nxe5 {[%clk 0:00:15]}  Bb4+ {[%clk 0:02:11]} 21. c3 {[%clk 0:00:14]}  Qf2+ {[%clk 0:02:10]} 22. Kd3 {[%clk 0:00:06]} 0-1


[Site "https://www.chess.com"]

[Event "Titled Tuesday Blitz April 11 Early 2023"]
[White "Kohler, Aran"]
[Black "Leebit02"]
[WhiteFideId "1002856"]
[WhiteElo "2297"]
[BlackElo "2419"]
[Result "0-1"]
[Round "05"]
[TimeControl "180+2"]
[Date "2023.04.11"]
[WhiteClock "0:00:43"]
[BlackClock "0:01:12"]

1. e4 {[%clk 0:02:59]}  c5 {[%clk 0:02:56]} 2. Nc3 {[%clk 0:02:59]}  Nc6 {[%clk 0:02:51]} 3. f4 {[%clk 0:02:59]}  g6 {[%clk 0:02:49]} 4. Nf3 {[%clk 0:02:58]}  Bg7 {[%clk 0:02:49]} 5. a3 {[%clk 0:02:55]}  d6 {[%clk 0:02:47]} 6. Bc4 {[%clk 0:02:55]}  Nf6 {[%clk 0:02:46]} 7. d3 {[%clk 0:02:53]}  O-O {[%clk 0:02:46]} 8. O-O {[%clk 0:02:53]}  e6 {[%clk 0:02:45]} 9. Ba2 {[%clk 0:02:49]}  a6 {[%clk 0:02:42]} 10. Qe1 {[%clk 0:02:48]}  d5 {[%clk 0:02:32]} 11. f5 {[%clk 0:02:45]}  exf5 {[%clk 0:02:29]} 12. Nxd5 {[%clk 0:02:38]}  Nxd5 {[%clk 0:02:25]} 13. Bxd5 {[%clk 0:02:35]}  fxe4 {[%clk 0:02:23]} 14. dxe4 {[%clk 0:02:34]}  Be6 {[%clk 0:02:20]} 15. Bxe6 {[%clk 0:02:19]}  fxe6 {[%clk 0:02:19]} 16. c3 {[%clk 0:02:20]}  Qd3 {[%clk 0:02:14]} 17. Be3 {[%clk 0:02:13]}  b6 {[%clk 0:02:04]} 18. Bf2 {[%clk 0:02:07]}  Rad8 {[%clk 0:02:00]} 19. Rd1 {[%clk 0:02:00]}  Qc2 {[%clk 0:02:00]} 20. Rxd8 {[%clk 0:01:43]}  Rxd8 {[%clk 0:01:58]} 21. b4 {[%clk 0:01:43]}  Bxc3 {[%clk 0:01:54]} 22. Qc1 {[%clk 0:01:22]}  Qxc1 {[%clk 0:01:36]} 23. Rxc1 {[%clk 0:01:21]}  Bb2 {[%clk 0:01:36]} 24. Rb1 {[%clk 0:01:02]}  Bxa3 {[%clk 0:01:36]} 25. bxc5 {[%clk 0:01:02]}  b5 {[%clk 0:01:31]} 26. Ng5 {[%clk 0:00:59]}  Nd4 {[%clk 0:01:14]} 27. Bxd4 {[%clk 0:00:45]}  Rxd4 {[%clk 0:01:14]} 28. Rc1 {[%clk 0:00:43]}  Bxc1 {[%clk 0:01:12]} 0-1


[Site "https://www.chess.com"]

[Event "Titled Tuesday Blitz April 11 Early 2023"]
[White "Szyszylo, Rafal"]
[Black "Orujov2008"]
[WhiteFideId "1109626"]
[WhiteElo "1951"]
[BlackElo "2296"]
[Result "0-1"]
[Round "05"]
[TimeControl "180+2"]
[Date "2023.04.11"]
[WhiteClock "0:00:01"]
[BlackClock "0:00:02"]

1. e4 {[%clk 0:03:00]}  e5 {[%clk 0:02:59]} 2. Nf3 {[%clk 0:02:54]}  Nf6 {[%clk 0:02:59]} 3. Nxe5 {[%clk 0:02:52]}  Nxe4 {[%clk 0:02:59]} 4. Qe2 {[%clk 0:02:46]}  Qe7 {[%clk 0:02:59]} 5. d3 {[%clk 0:02:37]}  d6 {[%clk 0:02:23]} 6. Nf3 {[%clk 0:02:13]}  Nf6 {[%clk 0:02:22]} 7. Be3 {[%clk 0:02:14]}  Nc6 {[%clk 0:02:21]} 8. Nc3 {[%clk 0:02:13]}  Be6 {[%clk 0:02:14]} 9. O-O-O {[%clk 0:02:13]}  O-O-O {[%clk 0:02:14]} 10. d4 {[%clk 0:01:56]}  Nd5 {[%clk 0:01:52]} 11. Nxd5 {[%clk 0:01:36]}  Bxd5 {[%clk 0:01:53]} 12. c4 {[%clk 0:01:35]}  Be4 {[%clk 0:01:41]} 13. Qd2 {[%clk 0:01:35]}  d5 {[%clk 0:01:36]} 14. c5 {[%clk 0:01:30]}  Qd7 {[%clk 0:01:23]} 15. Bb5 {[%clk 0:01:24]}  Bxf3 {[%clk 0:01:12]} 16. gxf3 {[%clk 0:01:25]}  Be7 {[%clk 0:01:12]} 17. Qc2 {[%clk 0:01:17]}  Bf6 {[%clk 0:01:07]} 18. Qa4 {[%clk 0:01:16]}  a6 {[%clk 0:01:07]} 19. Bxa6 {[%clk 0:00:51]}  Na7 {[%clk 0:00:22]} 20. Qxd7+ {[%clk 0:00:35]}  Rxd7 {[%clk 0:00:23]} 21. Bd3 {[%clk 0:00:34]}  Kb8 {[%clk 0:00:19]} 22. b4 {[%clk 0:00:29]}  Nc6 {[%clk 0:00:18]} 23. a3 {[%clk 0:00:28]}  Bxd4 {[%clk 0:00:13]} 24. Bf5 {[%clk 0:00:23]}  Bxe3+ {[%clk 0:00:12]} 25. fxe3 {[%clk 0:00:23]}  Rdd8 {[%clk 0:00:12]} 26. Rd3 {[%clk 0:00:17]}  Ne7 {[%clk 0:00:12]} 27. Bh3 {[%clk 0:00:16]}  c6 {[%clk 0:00:11]} 28. Rhd1 {[%clk 0:00:15]}  Kc7 {[%clk 0:00:12]} 29. Rg1 {[%clk 0:00:11]}  g6 {[%clk 0:00:08]} 30. Kb2 {[%clk 0:00:11]}  Rhe8 {[%clk 0:00:07]} 31. Kc3 {[%clk 0:00:10]}  Ng8 {[%clk 0:00:06]} 32. Kd4 {[%clk 0:00:10]}  Re7 {[%clk 0:00:06]} 33. Rb3 {[%clk 0:00:07]}  Rde8 {[%clk 0:00:06]} 34. a4 {[%clk 0:00:07]}  Nf6 {[%clk 0:00:05]} 35. Re1 {[%clk 0:00:07]}  Nh5 {[%clk 0:00:05]} 36. b5 {[%clk 0:00:06]}  Nf4 {[%clk 0:00:04]} 37. Bf1 {[%clk 0:00:04]}  Ne6+ {[%clk 0:00:05]} 38. Kc3 {[%clk 0:00:02]}  d4+ {[%clk 0:00:05]} 39. exd4 {[%clk 0:00:02]}  Nf4 {[%clk 0:00:03]} 40. Rxe7+ {[%clk 0:00:03]}  Rxe7 {[%clk 0:00:04]} 41. b6+ {[%clk 0:00:02]}  Kc8 {[%clk 0:00:03]} 42. Kd2 {[%clk 0:00:03]}  Nd5 {[%clk 0:00:02]} 43. Bc4 {[%clk 0:00:03]}  f5 {[%clk 0:00:02]} 44. Bxd5 {[%clk 0:00:03]}  cxd5 {[%clk 0:00:03]} 45. Re3 {[%clk 0:00:02]}  Rf7 {[%clk 0:00:02]} 46. Re8+ {[%clk 0:00:01]}  Kd7 {[%clk 0:00:03]} 47. Rb8 {[%clk 0:00:01]}  Kc6 {[%clk 0:00:03]} 48. Rc8+ {[%clk 0:00:01]}  Kd7 {[%clk 0:00:03]} 49. Rb8 {[%clk 0:00:01]}  Ke6 {[%clk 0:00:02]} 0-1


[Site "https://www.chess.com"]